[Event "NJSK 2026 Jeugd B"]
[Site "Helmond, Netherlands"]
[Date "2026.04.25"]
[Round "1.3"]
[White "Aravindhan, Achyuth"]
[Black "Etienne, Ghilon"]
[Result "1-0"]
[TimeControl "90min/40moves + 30min + 30sec/move"]
[WhiteTitle "-"]
[BlackTitle "-"]
[WhiteFideId "1084216"]
[BlackFideId "1084267"]
[WhiteElo "2277"]
[BlackElo "1976"]

1. e4 {[%clk 01:30:58]} {[%emt 00:00:02]} e5 {[%clk 01:30:55]} {[%emt
00:00:06]} 2. Nf3 {[%clk 01:31:25]} {[%emt 00:00:04]} Nc6 {[%clk 01:31:20]}
{[%emt 00:00:04]} 3. Nc3 {[%clk 01:31:31]} {[%emt 00:00:24]} Nf6 {[%clk
01:31:22]} {[%emt 00:00:29]} 4. h3 {[%clk 01:31:52]} {[%emt 00:00:11]} h6
{[%clk 01:28:59]} {[%emt 00:02:51]} 5. Bc4 {[%clk 01:08:28]} {[%emt 00:23:54]}
Nxe4 {[%clk 01:23:29]} {[%emt 00:06:00]} 6. Nxe4 {[%clk 00:54:10]} {[%emt
00:14:47]} d5 {[%clk 01:21:14]} {[%emt 00:02:45]} 7. Bd3 {[%clk 00:54:07]}
{[%emt 00:00:34]} dxe4 {[%clk 01:21:37]} {[%emt 00:00:06]} 8. Bxe4 {[%clk
00:54:33]} {[%emt 00:00:04]} Bd6 {[%clk 01:21:15]} {[%emt 00:00:52]} 9. d4
{[%clk 00:47:58]} {[%emt 00:07:06]} Nxd4 {[%clk 01:14:14]} {[%emt 00:07:30]} 10.
Nxd4 {[%clk 00:47:17]} {[%emt 00:01:12]} exd4 {[%clk 01:14:32]} {[%emt
00:00:12]} 11. Qxd4 {[%clk 00:47:02]} {[%emt 00:00:45]} O-O {[%clk 01:13:40]}
{[%emt 00:01:21]} 12. Bd2 {[%clk 00:42:57]} {[%emt 00:04:35]} Qe7 {[%clk
01:10:08]} {[%emt 00:04:02]} 13. O-O-O {[%clk 00:38:07]} {[%emt 00:05:20]} Bc5
{[%clk 01:09:36]} {[%emt 00:01:02]} 14. Qd3 {[%clk 00:34:24]} {[%emt 00:04:15]}
Bxf2 {[%clk 01:05:47]} {[%emt 00:04:17]} 15. Rhf1 {[%clk 00:32:50]} {[%emt
00:02:04]} Bh4 {[%clk 01:05:19]} {[%emt 00:00:58]} 16. Bc3 {[%clk 00:29:06]}
{[%emt 00:04:15]} Be6 {[%clk 01:03:13]} {[%emt 00:02:36]} 17. Kb1 {[%clk
00:24:49]} {[%emt 00:04:47]} Rad8 {[%clk 01:03:05]} {[%emt 00:00:37]} 18. Qf3
{[%clk 00:24:53]} {[%emt 00:00:26]} Rxd1+ {[%clk 01:02:54]} {[%emt 00:00:42]}
19. Rxd1 {[%clk 00:25:00]} {[%emt 00:00:23]} c6 {[%clk 01:03:07]} {[%emt
00:00:17]} 20. b3 {[%clk 00:11:36]} {[%emt 00:13:54]} f5 {[%clk 00:58:25]}
{[%emt 00:05:12]} 21. Bd3 {[%clk 00:11:02]} {[%emt 00:01:03]} Bd5 {[%clk
00:58:32]} {[%emt 00:00:23]} 22. Qf4 {[%clk 00:09:39]} {[%emt 00:01:53]} Bg5
{[%clk 00:58:27]} {[%emt 00:00:35]} 23. Qf1 {[%clk 00:08:47]} {[%emt 00:01:22]}
Qc5 {[%clk 00:56:45]} {[%emt 00:02:12]} 24. Bb2 {[%clk 00:07:59]} {[%emt
00:01:19]} Bf6 {[%clk 00:49:28]} {[%emt 00:07:47]} 25. Qxf5 {[%clk 00:07:36]}
{[%emt 00:00:53]} Bxb2 {[%clk 00:47:37]} {[%emt 00:02:21]} 26. Qh7+ {[%clk
00:07:59]} {[%emt 00:00:06]} Kf7 {[%clk 00:48:02]} {[%emt 00:00:05]} 27. Kxb2
{[%clk 00:06:28]} {[%emt 00:02:01]} Qd4+ {[%clk 00:47:22]} {[%emt 00:01:10]} 28.
Kb1 {[%clk 00:05:04]} {[%emt 00:01:56]} Ke7 {[%clk 00:47:10]} {[%emt 00:00:41]}
29. Qg6 {[%clk 00:02:59]} {[%emt 00:02:35]} Qe5 {[%clk 00:45:10]} {[%emt
00:02:30]} 30. Qg4 {[%clk 00:02:06]} {[%emt 00:01:23]} Kd8 {[%clk 00:39:43]}
{[%emt 00:05:56]} 31. c4 {[%clk 00:01:08]} {[%emt 00:01:28]} Be6 {[%clk
00:40:05]} {[%emt 00:00:08]} 32. Bf5+ {[%clk 00:00:50]} {[%emt 00:00:49]} Ke7
{[%clk 00:40:31]} {[%emt 00:00:04]} 33. Bxe6 {[%clk 00:01:07]} {[%emt
00:00:13]} Qxe6 {[%clk 00:40:49]} {[%emt 00:00:12]} 34. Qxg7+ {[%clk 00:00:50]}
{[%emt 00:00:47]} Rf7 {[%clk 00:40:28]} {[%emt 00:00:51]} 35. Qd4 {[%clk
00:00:54]} {[%emt 00:00:25]} Qg6+ {[%clk 00:39:31]} {[%emt 00:01:27]} 36. Kb2
{[%clk 00:00:37]} {[%emt 00:00:47]} Qxg2+ {[%clk 00:39:47]} {[%emt 00:00:14]}
37. Ka3 {[%clk 00:00:51]} {[%emt 00:00:15]} Qg3 {[%clk 00:36:20]} {[%emt
00:03:57]} 38. Qd8+ {[%clk 00:00:37]} {[%emt 00:00:45]} Ke6 {[%clk 00:36:45]}
{[%emt 00:00:05]} 39. c5 {[%clk 00:00:33]} {[%emt 00:00:34]} h5 {[%clk
00:14:37]} {[%emt 00:22:38]} 40. Qe8+ {[%clk 00:00:44]} {[%emt 00:00:19]} Re7
{[%clk 00:14:20]} {[%emt 00:00:47]} 41. Rd6+ {[%clk 00:01:06]} {[%emt
00:00:08]} Qxd6 {[%clk 00:14:38]} {[%emt 00:00:10]} 42. Qg6+ {[%clk 00:01:33]}
{[%emt 00:00:05]} Kd7 {[%clk 00:15:00]} {[%emt 00:00:08]} 43. Qxd6+ {[%clk
00:01:59]} {[%emt 00:00:04]} Ke8 {[%clk 00:15:22]} {[%emt 00:00:08]} 44. Qg6+
{[%clk 00:02:26]} {[%emt 00:00:03]} Rf7 {[%clk 00:15:40]} {[%emt 00:00:11]} 45.
Qxh5 {[%clk 00:02:51]} {[%emt 00:00:05]} Ke7 {[%emt 00:00:08]} 46. Qe5+ {[%clk
00:03:17]} Kd7 {[%clk 00:16:32]} {[%emt 00:00:05]} 47. Qd6+ {[%clk 00:03:44]}
{[%emt 00:00:03]} Ke8 {[%clk 00:16:56]} {[%emt 00:00:05]} 48. Qb8+ {[%clk
00:04:06]} {[%emt 00:00:10]} Ke7 {[%clk 00:17:21]} {[%emt 00:00:05]} 49. Qxb7+
{[%clk 00:04:31]} {[%emt 00:00:04]} Kf8 {[%clk 00:17:47]} {[%emt 00:00:04]} 50.
Qxc6 {[%clk 00:04:55]} {[%emt 00:00:06]} Kg7 {[%clk 00:18:12]} {[%emt
00:00:04]} 51. Qd6 {[%clk 00:05:17]} {[%emt 00:00:09]} Rf6 {[%clk 00:18:35]}
{[%emt 00:00:07]} 52. Qe7+ {[%clk 00:05:40]} {[%emt 00:00:07]} Rf7 {[%clk
00:19:01]} {[%emt 00:00:04]} 53. Qe5+ {[%clk 00:06:07]} {[%emt 00:00:03]} Kg6
{[%clk 00:19:25]} {[%emt 00:00:06]} 54. c6 {[%clk 00:06:31]} {[%emt 00:00:05]}
Rf5 {[%clk 00:19:52]} {[%emt 00:00:05]} 55. Qxf5+ {[%clk 00:06:57]} {[%emt
00:00:03]} 1-0

[Event "NJSK 2026 Jeugd B"]
[Site "Helmond, Netherlands"]
[Date "2026.04.25"]
[Round "1.4"]
[White "Hallibert, Emilien"]
[Black "Baarspul, Bram"]
[Result "1/2-1/2"]
[TimeControl "90min/40moves + 30min + 30sec/move"]
[WhiteTitle "-"]
[BlackTitle "-"]
[WhiteFideId "1092561"]
[BlackFideId "40106187"]
[WhiteElo "1975"]
[BlackElo "2177"]

1. c4 {[%clk 01:30:55]} {[%emt 00:00:04]} c5 {[%clk 01:30:33]} {[%emt
00:00:28]} 2. Nc3 {[%clk 01:31:20]} {[%emt 00:00:05]} Nc6 {[%clk 01:30:41]}
{[%emt 00:00:22]} 3. Nf3 {[%clk 01:31:44]} {[%emt 00:00:07]} Nf6 {[%clk
01:30:40]} {[%emt 00:00:30]} 4. g3 {[%clk 01:32:09]} {[%emt 00:00:05]} d5
{[%clk 01:27:25]} {[%emt 00:03:45]} 5. cxd5 {[%clk 01:32:33]} {[%emt 00:00:06]}
Nxd5 {[%clk 01:27:46]} {[%emt 00:00:08]} 6. Bg2 {[%clk 01:32:59]} {[%emt
00:00:04]} Nc7 {[%clk 01:26:35]} {[%emt 00:01:42]} 7. O-O {[%clk 01:33:21]}
{[%emt 00:00:08]} e5 {[%clk 01:26:08]} {[%emt 00:00:56]} 8. d3 {[%clk
01:33:33]} {[%emt 00:00:18]} Be7 {[%clk 01:24:49]} {[%emt 00:01:49]} 9. a3
{[%clk 01:33:39]} {[%emt 00:00:25]} O-O {[%clk 01:22:39]} {[%emt 00:02:39]} 10.
Be3 {[%clk 01:27:32]} {[%emt 00:06:38]} f6 {[%clk 01:16:34]} {[%emt 00:06:33]}
11. Rc1 {[%clk 01:21:28]} {[%emt 00:06:35]} Nd4 {[%clk 00:58:43]} {[%emt
00:18:21]} 12. b4 {[%clk 00:56:27]} {[%emt 00:25:33]} Be6 {[%clk 00:51:08]}
{[%emt 00:08:04]} 13. bxc5 {[%clk 00:51:02]} {[%emt 00:05:55]} Nb3 {[%clk
00:36:59]} {[%emt 00:14:39]} 14. Rb1 {[%clk 00:50:10]} {[%emt 00:01:22]} Nxc5
{[%clk 00:37:18]} {[%emt 00:00:11]} 15. d4 {[%clk 00:48:13]} {[%emt 00:02:27]}
exd4 {[%clk 00:36:35]} {[%emt 00:01:13]} 16. Nxd4 {[%clk 00:47:15]} {[%emt
00:01:28]} Rb8 {[%clk 00:28:48]} {[%emt 00:08:17]} 17. Bf4 {[%clk 00:44:49]}
{[%emt 00:02:55]} Rc8 {[%clk 00:23:04]} {[%emt 00:06:15]} 18. Bxc7 {[%clk
00:30:59]} {[%emt 00:14:20]} Rxc7 {[%clk 00:22:24]} {[%emt 00:01:10]} 19. Nxe6
{[%clk 00:30:26]} {[%emt 00:01:03]} Nxe6 {[%clk 00:22:13]} {[%emt 00:00:42]} 20.
Nb5 {[%clk 00:28:48]} {[%emt 00:02:07]} Rc5 {[%clk 00:17:17]} {[%emt 00:05:26]}
21. Qb3 {[%clk 00:28:54]} {[%emt 00:00:25]} Re5 {[%clk 00:15:31]} {[%emt
00:02:16]} 22. Rfd1 {[%clk 00:18:59]} {[%emt 00:10:24]} Qb6 {[%clk 00:15:21]}
{[%emt 00:00:40]} 23. Qa2 {[%clk 00:18:52]} {[%emt 00:00:37]} Rd8 {[%clk
00:03:42]} {[%emt 00:12:09]} 24. Rxd8+ {[%clk 00:15:35]} {[%emt 00:03:46]} Bxd8
{[%clk 00:04:06]} {[%emt 00:00:06]} 25. Nc3 {[%clk 00:14:55]} {[%emt 00:01:10]}
Qc5 {[%clk 00:03:33]} {[%emt 00:01:04]} 26. Ne4 {[%clk 00:08:05]} {[%emt
00:07:19]} Qd4 {[%clk 00:03:25]} {[%emt 00:00:38]} 27. e3 {[%clk 00:08:03]}
{[%emt 00:00:33]} Qd3 {[%clk 00:03:27]} {[%emt 00:00:28]} 28. Nc5 {[%clk
00:07:59]} {[%emt 00:00:35]} Rxc5 {[%clk 00:03:27]} {[%emt 00:00:29]} 29. Qxe6+
{[%clk 00:08:23]} {[%emt 00:00:06]} Kf8 {[%clk 00:03:51]} {[%emt 00:00:06]} 30.
Be4 {[%clk 00:08:01]} {[%emt 00:00:52]} Re5 {[%clk 00:01:28]} {[%emt 00:02:53]}
31. Qxe5 {[%clk 00:08:07]} {[%emt 00:00:23]} Qxb1+ {[%clk 00:01:55]} {[%emt
00:00:03]} 32. Bxb1 {[%clk 00:08:26]} {[%emt 00:00:11]} fxe5 {[%clk 00:02:21]}
{[%emt 00:00:05]} 33. Bxh7 {[%clk 00:08:40]} {[%emt 00:00:15]} Ke7 {[%clk
00:01:51]} {[%emt 00:01:00]} 34. Kf1 {[%emt 00:01:27]} Kd6 {[%clk 00:01:06]} 35.
Ke2 {[%clk 00:09:02]} {[%emt 00:00:26]} Kc5 {[%clk 00:01:24]} {[%emt 00:00:12]}
36. Kd3 {[%clk 00:09:20]} {[%emt 00:00:12]} b5 {[%clk 00:01:03]} {[%emt
00:00:51]} 37. Bg8 {[%clk 00:08:54]} {[%emt 00:00:55]} a5 {[%clk 00:01:09]}
{[%emt 00:00:25]} 38. Ke4 {[%clk 00:08:38]} {[%emt 00:00:47]} Bc7 {[%clk
00:01:11]} {[%emt 00:00:28]} 39. Kf5 {[%clk 00:07:34]} {[%emt 00:01:34]} Bd6
{[%clk 00:01:21]} {[%emt 00:00:20]} 40. Bb3 {[%clk 00:05:44]} {[%emt 00:02:20]}
a4 {[%clk 00:01:34]} {[%emt 00:00:15]} 41. Be6 {[%clk 00:04:42]} {[%emt
00:01:33]} 1/2-1/2

[Event "NJSK 2026 Jeugd B"]
[Site "Helmond, Netherlands"]
[Date "2026.04.25"]
[Round "1.5"]
[White "Chua, Ethan"]
[Black "Roebers, Bregje"]
[Result "1-0"]
[TimeControl "90min/40moves + 30min + 30sec/move"]
[WhiteTitle "-"]
[BlackTitle "-"]
[WhiteFideId "1089250"]
[BlackFideId "1085174"]
[WhiteElo "2168"]
[BlackElo "1945"]

1. e4 {[%clk 01:30:57]} {[%emt 00:00:01]} c5 {[%clk 01:30:43]} {[%emt
00:00:18]} 2. Nf3 {[%clk 01:31:03]} {[%emt 00:00:24]} d6 {[%clk 01:30:40]}
{[%emt 00:00:34]} 3. d4 {[%clk 01:31:29]} {[%emt 00:00:03]} cxd4 {[%clk
01:30:39]} {[%emt 00:00:32]} 4. Nxd4 {[%clk 01:31:53]} {[%emt 00:00:05]} Nf6
{[%clk 01:30:40]} {[%emt 00:00:29]} 5. Nc3 {[%clk 01:32:16]} {[%emt 00:00:07]}
a6 {[%clk 01:30:45]} {[%emt 00:00:26]} 6. Be2 {[%clk 01:32:39]} {[%emt
00:00:06]} e6 {[%clk 01:29:37]} {[%emt 00:01:37]} 7. O-O {[%clk 01:27:19]}
{[%emt 00:05:50]} Be7 {[%clk 01:27:15]} {[%emt 00:02:52]} 8. f4 {[%clk
01:26:45]} {[%emt 00:01:04]} O-O {[%clk 01:19:26]} {[%emt 00:08:19]} 9. Be3
{[%clk 01:23:23]} {[%emt 00:03:52]} Qc7 {[%clk 01:07:02]} {[%emt 00:12:54]} 10.
a4 {[%clk 01:20:59]} {[%emt 00:02:54]} b6 {[%clk 01:01:39]} {[%emt 00:05:52]}
11. Bf3 {[%clk 01:14:14]} {[%emt 00:07:15]} Bb7 {[%clk 00:59:20]} {[%emt
00:02:49]} 12. g4 {[%clk 01:08:49]} {[%emt 00:05:54]} d5 {[%clk 00:45:39]}
{[%emt 00:14:12]} 13. exd5 {[%clk 00:54:23]} {[%emt 00:14:57]} exd5 {[%clk
00:42:55]} {[%emt 00:03:15]} 14. Nf5 {[%clk 00:40:51]} {[%emt 00:14:01]} Bc5
{[%clk 00:32:56]} {[%emt 00:10:29]} 15. Nxd5 {[%clk 00:36:42]} {[%emt
00:04:39]} Bxd5 {[%clk 00:18:20]} {[%emt 00:15:05]} 16. Bxd5 {[%clk 00:36:44]}
{[%emt 00:00:29]} Nxd5 {[%clk 00:15:32]} {[%emt 00:03:18]} 17. Qxd5 {[%clk
00:36:45]} {[%emt 00:00:29]} Bxe3+ {[%clk 00:15:24]} {[%emt 00:00:38]} 18. Nxe3
{[%clk 00:36:54]} {[%emt 00:00:21]} Nd7 {[%clk 00:15:00]} {[%emt 00:00:53]} 19.
Rad1 {[%clk 00:28:42]} {[%emt 00:08:43]} Nc5 {[%clk 00:13:39]} {[%emt
00:01:50]} 20. Qc4 {[%clk 00:20:44]} {[%emt 00:08:29]} Rfe8 {[%clk 00:08:28]}
{[%emt 00:05:41]} 21. Nd5 {[%clk 00:20:29]} {[%emt 00:00:54]} Qa7 {[%clk
00:08:38]} {[%emt 00:00:11]} 22. Rfe1 {[%clk 00:10:08]} {[%emt 00:10:50]} b5
{[%clk 00:05:53]} {[%emt 00:03:16]} 23. axb5 {[%clk 00:08:56]} {[%emt
00:01:42]} axb5 {[%clk 00:05:22]} {[%emt 00:01:01]} 24. Qd4 {[%clk 00:08:36]}
{[%emt 00:00:50]} Rxe1+ {[%clk 00:03:40]} {[%emt 00:02:13]} 25. Rxe1 {[%clk
00:08:52]} {[%emt 00:00:13]} Ne6 {[%clk 00:02:46]} {[%emt 00:01:23]} 26. Qxa7
{[%clk 00:08:57]} {[%emt 00:00:25]} Rxa7 {[%clk 00:03:11]} {[%emt 00:00:05]} 27.
f5 {[%clk 00:08:21]} {[%emt 00:01:07]} Nf8 {[%clk 00:03:17]} {[%emt 00:00:24]}
28. Re8 {[%clk 00:08:16]} {[%emt 00:00:35]} f6 {[%clk 00:03:29]} {[%emt
00:00:18]} 29. Rb8 {[%clk 00:08:06]} {[%emt 00:00:38]} Ra1+ {[%clk 00:02:41]}
{[%emt 00:01:19]} 30. Kf2 {[%clk 00:07:59]} {[%emt 00:00:34]} Rh1 {[%clk
00:02:15]} {[%emt 00:00:59]} 31. Kg2 {[%clk 00:07:55]} {[%emt 00:00:34]} Re1
{[%clk 00:02:08]} {[%emt 00:00:38]} 32. Nf4 {[%clk 00:08:11]} {[%emt 00:00:14]}
Kf7 {[%clk 00:01:27]} {[%emt 00:01:10]} 33. Rb7+ {[%clk 00:08:20]} {[%emt
00:00:21]} Ke8 {[%clk 00:00:50]} {[%emt 00:01:08]} 34. Rxb5 {[%clk 00:07:16]}
{[%emt 00:01:33]} Nd7 {[%clk 00:00:52]} {[%emt 00:00:29]} 35. Rb7 {[%clk
00:06:41]} {[%emt 00:01:05]} Re4 {[%clk 00:00:54]} {[%emt 00:00:28]} 36. Kf3
{[%clk 00:06:16]} {[%emt 00:00:53]} Rc4 {[%clk 00:01:07]} {[%emt 00:00:19]} 37.
c3 {[%clk 00:06:16]} {[%emt 00:00:30]} Ne5+ {[%clk 00:01:28]} {[%emt 00:00:09]}
38. Kg3 {[%clk 00:05:59]} {[%emt 00:00:46]} g5 {[%clk 00:01:20]} {[%emt
00:00:38]} 39. fxg6 {[%clk 00:06:16]} {[%emt 00:00:14]} hxg6 {[%clk 00:01:41]}
{[%emt 00:00:09]} 40. h3 {[%clk 00:06:38]} {[%emt 00:00:07]} Re4 {[%clk
00:01:19]} {[%emt 00:00:52]} 41. Nd5 {[%clk 00:06:31]} {[%emt 00:00:36]} 1-0

[Event "NJSK 2026 Jeugd B"]
[Site "Helmond, Netherlands"]
[Date "2026.04.25"]
[Round "1.6"]
[White "Woldhuis, Marnik"]
[Black "Darie, Aden"]
[Result "1/2-1/2"]
[TimeControl "90min/40moves + 30min + 30sec/move"]
[WhiteTitle "-"]
[BlackTitle "-"]
[WhiteFideId "1087096"]
[BlackFideId "1094831"]
[WhiteElo "1939"]
[BlackElo "2150"]

1. b4 {[%clk 01:30:58]} {[%emt 00:00:01]} e5 {[%clk 01:29:52]} {[%emt
00:01:09]} 2. Bb2 {[%clk 01:31:23]} {[%emt 00:00:08]} Bxb4 {[%clk 01:30:14]}
{[%emt 00:00:05]} 3. Bxe5 {[%clk 01:31:47]} {[%emt 00:00:06]} Nf6 {[%clk
01:30:23]} {[%emt 00:00:20]} 4. c4 {[%clk 01:32:08]} {[%emt 00:00:09]} Nc6
{[%clk 01:29:31]} {[%emt 00:01:22]} 5. Bb2 {[%clk 01:32:32]} {[%emt 00:00:06]}
O-O {[%clk 01:29:03]} {[%emt 00:00:59]} 6. Nf3 {[%clk 01:32:51]} {[%emt
00:00:10]} d5 {[%clk 01:25:38]} {[%emt 00:03:56]} 7. e3 {[%clk 01:33:10]}
{[%emt 00:00:11]} Bg4 {[%clk 01:08:42]} {[%emt 00:17:25]} 8. cxd5 {[%clk
01:28:37]} {[%emt 00:05:04]} Qxd5 {[%clk 01:04:03]} {[%emt 00:05:08]} 9. Be2
{[%clk 01:25:39]} {[%emt 00:03:29]} Ne4 {[%clk 00:59:11]} {[%emt 00:05:22]} 10.
O-O {[%clk 01:24:39]} {[%emt 00:01:31]} Rad8 {[%clk 00:59:27]} {[%emt
00:00:14]} 11. d3 {[%clk 01:23:34]} {[%emt 00:01:35]} Ng5 {[%clk 00:53:10]}
{[%emt 00:06:46]} 12. Nxg5 {[%clk 01:13:18]} {[%emt 00:10:47]} Bxe2 {[%clk
00:53:31]} {[%emt 00:00:09]} 13. Qxe2 {[%clk 01:13:43]} {[%emt 00:00:05]} Qxg5
{[%clk 00:53:51]} {[%emt 00:00:09]} 14. Nc3 {[%clk 01:14:00]} {[%emt 00:00:14]}
Rfe8 {[%clk 00:53:48]} {[%emt 00:00:33]} 15. Ne4 {[%clk 01:09:28]} {[%emt
00:05:02]} Qg6 {[%clk 00:50:02]} {[%emt 00:04:15]} 16. Rfc1 {[%clk 00:49:40]}
{[%emt 00:20:18]} Rxe4 {[%clk 00:40:48]} {[%emt 00:09:45]} 17. dxe4 {[%clk
00:49:45]} {[%emt 00:00:24]} Rd2 {[%clk 00:41:08]} {[%emt 00:00:10]} 18. Qb5
{[%clk 00:38:48]} {[%emt 00:11:28]} Rxb2 {[%clk 00:41:29]} {[%emt 00:00:08]} 19.
Qxb7 {[%clk 00:38:57]} {[%emt 00:00:21]} Qf6 {[%clk 00:40:49]} {[%emt
00:01:10]} 20. f3 {[%clk 00:38:23]} {[%emt 00:01:04]} Qg5 {[%clk 00:38:14]}
{[%emt 00:03:05]} 21. Qc8+ {[%clk 00:36:01]} {[%emt 00:02:52]} Nd8 {[%clk
00:38:24]} {[%emt 00:00:20]} 22. Qh3 {[%clk 00:36:18]} {[%emt 00:00:12]} Qxe3+
{[%clk 00:38:36]} {[%emt 00:00:19]} 23. Kh1 {[%clk 00:36:43]} {[%emt 00:00:04]}
Rxa2 {[%clk 00:38:10]} {[%emt 00:00:57]} 24. Qd7 {[%clk 00:32:24]} {[%emt
00:04:49]} Ne6 {[%clk 00:38:14]} {[%emt 00:00:27]} 25. Rab1 {[%clk 00:30:23]}
{[%emt 00:02:30]} g6 {[%clk 00:37:40]} {[%emt 00:01:04]} 26. Qd5 {[%clk
00:23:30]} {[%emt 00:07:23]} Rxg2 {[%clk 00:34:57]} {[%emt 00:03:12]} 27. Qa8+
{[%clk 00:21:57]} {[%emt 00:02:03]} Kg7 {[%clk 00:35:21]} {[%emt 00:00:06]} 28.
Kxg2 {[%clk 00:19:11]} {[%emt 00:03:16]} Qe2+ {[%clk 00:35:24]} {[%emt
00:00:28]} 29. Kh1 {[%clk 00:18:56]} {[%emt 00:00:45]} Bd6 {[%clk 00:35:41]}
{[%emt 00:00:13]} 30. e5 {[%clk 00:19:08]} {[%emt 00:00:18]} Nf4 {[%clk
00:35:31]} {[%emt 00:00:39]} 31. Rg1 {[%clk 00:19:01]} {[%emt 00:00:38]} Nd3
{[%clk 00:26:20]} {[%emt 00:09:40]} 32. Rg2 {[%clk 00:18:12]} {[%emt 00:01:18]}
Qxe5 {[%clk 00:26:44]} {[%emt 00:00:06]} 33. Qe4 {[%clk 00:18:14]} {[%emt
00:00:29]} Qxe4 {[%clk 00:26:19]} {[%emt 00:00:56]} 34. fxe4 {[%clk 00:18:40]}
{[%emt 00:00:03]} Kf6 {[%clk 00:26:38]} {[%emt 00:00:11]} 35. Rd2 {[%clk
00:18:09]} {[%emt 00:01:01]} Nf4 {[%clk 00:25:16]} {[%emt 00:02:00]} 36. Rb5
{[%clk 00:16:43]} {[%emt 00:01:48]} Ne6 {[%clk 00:23:53]} {[%emt 00:01:54]} 37.
Rf2+ {[%clk 00:15:17]} {[%emt 00:01:55]} Ke7 {[%clk 00:23:59]} {[%emt
00:00:25]} 38. Rd2 {[%clk 00:13:42]} {[%emt 00:02:05]} f6 {[%clk 00:24:12]}
{[%emt 00:00:17]} 39. Kg2 {[%clk 00:13:31]} {[%emt 00:00:40]} Nc5 {[%clk
00:24:14]} {[%emt 00:00:29]} 40. Kf3 {[%clk 00:13:06]} {[%emt 00:00:55]} Nd7
{[%clk 00:24:37]} {[%emt 00:00:07]} 41. Rc2 {[%clk 00:12:15]} {[%emt 00:01:21]}
g5 {[%clk 00:23:30]} {[%emt 00:01:37]} 42. h3 {[%clk 00:12:30]} {[%emt
00:00:51]} h5 {[%clk 00:23:34]} {[%emt 00:00:26]} 43. Ra5 {[%clk 00:12:25]}
{[%emt 00:00:36]} Ne5+ {[%clk 00:23:46]} {[%emt 00:00:17]} 44. Ke2 {[%clk
00:12:39]} {[%emt 00:00:17]} Ng6 {[%clk 00:24:07]} {[%emt 00:00:10]} 45. Rc3
{[%clk 00:11:37]} {[%emt 00:01:31]} Nf4+ {[%clk 00:23:44]} {[%emt 00:00:53]} 46.
Kf1 {[%clk 00:11:43]} {[%emt 00:00:24]} Ke6 {[%clk 00:22:21]} {[%emt 00:01:53]}
47. Rxa7 {[%clk 00:11:43]} {[%emt 00:00:30]} Ke5 {[%clk 00:22:42]} {[%emt
00:00:09]} 48. Ra4 {[%clk 00:11:58]} {[%emt 00:00:15]} Ne6 {[%clk 00:22:57]}
{[%emt 00:00:15]} 49. Rd3 {[%clk 00:11:23]} {[%emt 00:01:05]} Nc5 {[%clk
00:22:37]} {[%emt 00:00:50]} 50. Rd5+ {[%clk 00:11:19]} {[%emt 00:00:34]} Ke6
{[%clk 00:22:56]} {[%emt 00:00:11]} 51. Ra8 {[%clk 00:08:59]} {[%emt 00:02:50]}
Nxe4 {[%clk 00:23:15]} {[%emt 00:00:11]} 52. Rda5 {[%clk 00:09:24]} {[%emt
00:00:05]} c5 {[%clk 00:23:13]} {[%emt 00:00:32]} 53. R5a6 {[%clk 00:09:31]}
{[%emt 00:00:23]} Kd5 {[%clk 00:23:17]} {[%emt 00:00:25]} 54. Rd8 {[%clk
00:09:48]} {[%emt 00:00:13]} c4 {[%clk 00:23:26]} {[%emt 00:00:22]} 55. Ra5+
{[%clk 00:09:15]} {[%emt 00:01:03]} Kd4 {[%clk 00:23:06]} {[%emt 00:00:50]} 56.
Ra3 {[%clk 00:06:54]} {[%emt 00:02:52]} c3 {[%clk 00:21:40]} {[%emt 00:01:55]}
57. Ra4+ {[%clk 00:07:04]} {[%emt 00:00:20]} Kd3 {[%clk 00:20:28]} {[%emt
00:01:43]} 58. Rxe4 {[%clk 00:07:26]} {[%emt 00:00:07]} Kxe4 {[%clk 00:20:53]}
{[%emt 00:00:04]} 59. Rxd6 {[%clk 00:07:51]} {[%emt 00:00:06]} c2 {[%clk
00:21:19]} {[%emt 00:00:04]} 60. Rc6 {[%clk 00:08:14]} {[%emt 00:00:07]} Kd3
{[%clk 00:21:29]} {[%emt 00:00:20]} 61. Ke1 {[%clk 00:08:07]} {[%emt 00:00:37]}
f5 {[%clk 00:21:49]} {[%emt 00:00:11]} 62. Rd6+ {[%clk 00:07:02]} {[%emt
00:01:35]} Ke3 {[%clk 00:22:10]} {[%emt 00:00:08]} 63. Rc6 {[%clk 00:07:20]}
{[%emt 00:00:12]} Kd3 {[%clk 00:19:56]} {[%emt 00:02:45]} 64. Rd6+ {[%clk
00:07:42]} {[%emt 00:00:08]} Ke3 {[%clk 00:18:16]} {[%emt 00:02:10]} 65. Rc6
{[%clk 00:07:59]} {[%emt 00:00:12]} Kd3 {[%clk 00:17:01]} {[%emt 00:01:45]}
1/2-1/2